fUSD/lending_fUSD_20240904
["ID","MTS","AMOUNT","RATE_DAILY","PERIOD"]
[337189020,1725493878731,-500.0,0.00014893,2]
[337189021,1725493878741,-500.0,0.00014893,2]
[337189022,1725493878750,-637.24,0.00014893,2]
[337189023,1725493878759,-500.0,0.00014893,2]
[337189024,1725493878769,-873.13,0.00014893,2]
[337189025,1725493878778,-453.07892169,0.00014893,2]
[337189026,1725493878787,-626.73666139,0.00014893,2]
[337189027,1725493878796,-2700.99,0.00014893,2]
[337189028,1725493878805,-500.0,0.00014893,2]
[337189029,1725493878814,-1793.6,0.00014893,2]
[337189030,1725493878823,-500.0,0.00014893,2]
[337189031,1725493878832,-823.25,0.00014893,2]
[337189032,1725493878841,-968.13,0.00014893,2]
[337189033,1725493878851,-500.0,0.00014893,2]
[337189034,1725493878860,-500.0,0.00014893,2]
[337189035,1725493878869,-500.0,0.00014893,2]
[337189036,1725493878879,-1265.08,0.00014893,2]
[337189037,1725493878888,-633.32,0.00014893,2]
[337189038,1725493878897,-492.57667736,0.00014893,2]
[337189039,1725493878907,-500.0,0.00014893,2]
[337189040,1725493878915,-1025.34,0.00014893,2]
[337189041,1725493878925,-500.0,0.00014893,2]
[337189042,1725493878934,-597.69,0.00014893,2]
[337189043,1725493878944,-836.5,0.00014893,2]
[337189044,1725493878953,-1747.15,0.00014893,2]
[337189045,1725493878963,-683.02,0.00014893,2]
[337189046,1725493878972,-500.0,0.00014893,2]
[337189047,1725493878981,-500.0,0.00014893,2]
[337189048,1725493878990,-500.0,0.00014893,2]
[337189049,1725493879000,-500.0,0.00014893,2]
[337189050,1725493879010,-500.0,0.00014893,2]
[337189051,1725493879019,-701.25,0.00014893,2]
[337189052,1725493879029,-1916.52,0.00014893,2]
[337189053,1725493879039,-1364.43,0.00014893,2]
[337189054,1725493879048,-300.0,0.00014893,2]
[337189055,1725493879057,-500.0,0.00014893,2]
[337189056,1725493879066,-1057.84,0.00014893,2]
[337189057,1725493879075,-1349.03,0.00014893,2]
[337189058,1725493879084,-620.36,0.00014893,2]
[337189059,1725493879093,-767.11,0.00014893,2]
[337189060,1725493879103,-767.11,0.00014893,2]
[337189061,1725493879112,-951.83,0.00014893,2]
[337189062,1725493879122,-500.0,0.00014893,2]
[337189063,1725493879131,-500.0,0.00014893,2]
[337189064,1725493879140,-1050.43,0.00014893,2]
[337189065,1725493879149,-500.0,0.00014893,2]
[337189066,1725493879158,-500.0,0.00014893,2]
[337189067,1725493879168,-655.43,0.00014893,2]
[337189068,1725493879177,-1763.42,0.00014893,2]
[337189069,1725493879186,-500.0,0.00014893,2]
[337189070,1725493879195,-500.0,0.00014893,2]
[337189071,1725493879205,-1609.24,0.00014893,2]
[337189072,1725493879214,-1609.24,0.00014893,2]
[337189073,1725493879225,-524.69,0.00014893,2]
[337189074,1725493879235,-499.79469891,0.00014893,2]
[337189075,1725493879244,-2614.4,0.00014893,2]
[337189076,1725493879253,-500.0,0.00014893,2]
[337189077,1725493879263,-500.0,0.00014893,2]
[337189078,1725493879272,-997.8,0.00014893,2]
[337189079,1725493879282,-500.0,0.00014893,2]
[337189080,1725493879291,-582.73,0.00014893,2]
[337189081,1725493879301,-1200.76,0.00014893,2]
[337189082,1725493879310,-500.0,0.00014893,2]
[337189083,1725493879319,-1200.76,0.00014893,2]
[337189084,1725493879328,-403.36571938,0.00014893,2]
[337189085,1725493879338,-400.0,0.00014893,2]
[337189086,1725493879347,-502.82197985,0.00014893,2]
[337189087,1725493879356,-500.0,0.00014893,2]
[337189088,1725493879365,-500.0,0.00014893,2]
[337189089,1725493879375,-1305.24,0.00014893,2]
[337189090,1725493879384,-500.0,0.00014893,2]
[337189091,1725493879394,-715.19,0.00014893,2]
[337189092,1725493879404,-715.19,0.00014893,2]
[337189093,1725493879413,-500.0,0.00014893,2]
[337189094,1725493879423,-500.0,0.00014893,2]
[337189095,1725493879433,-1181.15,0.00014893,2]
[337189096,1725493879442,-500.0,0.00014893,2]
[337189097,1725493879451,-500.0,0.00014893,2]
[337189098,1725493879461,-1431.62,0.00014893,2]
[337189099,1725493879471,-505.83255167,0.00014893,2]
[337189100,1725493879481,-500.0,0.00014893,2]
[337189101,1725493879491,-500.0,0.00014893,2]
[337189102,1725493879501,-151.0,0.00014893,2]
[337189103,1725493879511,-500.0,0.00014893,2]
[337189104,1725493879521,-501.06179267,0.00014893,2]
[337189105,1725493879531,-1924.34,0.00014893,2]
[337189106,1725493879541,-2303.47,0.00014893,2]
[337189107,1725493879550,-1249.53,0.00014893,2]
[337189108,1725493879560,-1249.53,0.00014893,2]
[337189109,1725493879572,-500.0,0.00014893,2]
[337189110,1725493879583,-500.0,0.00014893,2]
[337189111,1725493879592,-500.0,0.00014893,2]
[337189112,1725493879606,-1603.61,0.00014893,2]
[337189113,1725493879615,-734.72,0.00014893,2]
[337189114,1725493879625,-1232.06,0.00014893,2]
[337189115,1725493879635,-500.0,0.00014893,2]
[337189116,1725493879644,-500.0,0.00014893,2]
[337189117,1725493879654,-1295.06,0.00014893,2]
[337189118,1725493879664,-1274.8,0.00014893,2]
[337189119,1725493879674,-500.0,0.00014893,2]
[337189120,1725493879684,-753.65,0.00014893,2]
[337189121,1725493879693,-502.71210285,0.00014893,2]
[337189122,1725493879703,-2000.11,0.00014893,2]
[337189123,1725493879713,-1422.74,0.00014893,2]
[337189124,1725493879723,-1422.74,0.00014893,2]
[337189125,1725493879733,-577.18,0.00014893,2]
[337189126,1725493879743,-1318.48,0.00014893,2]
[337189127,1725493879753,-968.71,0.00014893,2]
[337189128,1725493879763,-1382.23,0.00014893,2]
[337189129,1725493879772,-745.39,0.00014893,2]
[337189130,1725493879783,-500.0,0.00014893,2]
[337189131,1725493879793,-500.0,0.00014893,2]
[337189132,1725493879803,-884.96,0.00014893,2]
[337189133,1725493879813,-500.0,0.00014893,2]
[337189134,1725493879823,-649.0,0.00014893,2]
[337189135,1725493879833,-500.0,0.00014893,2]
[337189136,1725493879843,-1634.93,0.00014893,2]
[337189137,1725493879853,-500.0,0.00014893,2]
[337189138,1725493879863,-500.0,0.00014893,2]
[337189139,1725493879872,-500.0,0.00014893,2]
[337189140,1725493879882,-1077.14,0.00014893,2]
[337189141,1725493879892,-1077.14,0.00014893,2]
[337189142,1725493879902,-1259.26,0.00014893,2]
[337189143,1725493879912,-500.0,0.00014893,2]
[337189144,1725493879923,-549.71,0.00014893,2]
[337189145,1725493879933,-500.0,0.00014893,2]
[337189146,1725493879943,-1060.69,0.00014893,2]
[337189147,1725493879953,-636.07,0.00014893,2]
[337189148,1725493879963,-1060.69,0.00014893,2]
[337189149,1725493879973,-574.19,0.00014893,2]
[337189150,1725493879982,-500.0,0.00014893,2]
[337189151,1725493879992,-500.0,0.00014893,2]
[337189152,1725493880002,-1348.62,0.00014893,2]
[337189153,1725493880012,-1725.89,0.00014893,2]
[337189154,1725493880023,-1622.13,0.00014893,2]
[337189155,1725493880034,-1622.13,0.00014893,2]
[337189156,1725493880044,-500.0,0.00014893,2]
[337189157,1725493880054,-1421.87,0.00014893,2]
[337189158,1725493880064,-1908.82,0.00014893,2]
[337189159,1725493880074,-500.0,0.00014893,2]
[337189160,1725493880084,-500.0,0.00014893,2]
[337189161,1725493880095,-500.0,0.00014893,2]
[337189162,1725493880106,-1435.93,0.00014893,2]
[337189163,1725493880117,-500.0,0.00014893,2]
[337189164,1725493880128,-500.0,0.00014893,2]
[337189165,1725493880137,-883.56,0.00014893,2]
[337189166,1725493880147,-883.56,0.00014893,2]
[337189167,1725493880159,-577.76,0.00014893,2]
[337189168,1725493880169,-582.58,0.00014893,2]
[337189169,1725493880179,-512.65138581,0.00014893,2]
[337189170,1725493880188,-224.182399,0.00014893,2]
[337189171,1725493880198,-500.0,0.00014893,2]
[337189172,1725493880210,-1325.45,0.00014893,2]
[337189173,1725493880220,-1325.45,0.00014893,2]
[337189174,1725493880230,-500.0,0.00014893,2]
[337189175,1725493880240,-500.0,0.00014893,2]
[337189176,1725493880250,-649.76,0.00014893,2]
[337189177,1725493880261,-500.0,0.00014893,2]
[337189178,1725493880270,-500.0,0.00014893,2]
[337189179,1725493880280,-500.0,0.00014893,2]
[337189180,1725493880290,-1229.41,0.00014893,2]
[337189181,1725493880299,-1229.41,0.00014893,2]
[337189182,1725493880309,-500.0,0.00014893,2]
[337189183,1725493880319,-500.0,0.00014893,2]
[337189184,1725493880329,-1986.11,0.00014893,2]
[337189185,1725493880339,-500.0,0.00014893,2]
[337189186,1725493880349,-1573.43,0.00014893,2]
[337189187,1725493880358,-985.67,0.00014893,2]
[337189188,1725493880367,-608.98,0.00014893,2]
[337189189,1725493880377,-608.98,0.00014893,2]
[337189190,1725493880387,-500.0,0.00014893,2]
[337189191,1725493880396,-502.32273751,0.00014893,2]
[337189192,1725493880406,-500.0,0.00014893,2]
[337189193,1725493880416,-668.25,0.00014893,2]
[337189194,1725493880426,-500.0,0.00014893,2]
[337189195,1725493880435,-1872.29,0.00014893,2]
[337189196,1725493880445,-500.0,0.00014893,2]
[337189197,1725493880455,-500.0,0.00014893,2]
[337189198,1725493880465,-2987.28,0.00014893,2]
[337189199,1725493880477,-785.78,0.00014893,2]
[337189200,1725493880488,-500.0,0.00014893,2]
[337189201,1725493880499,-2005.41,0.00014893,2]
[337189202,1725493880510,-2005.08,0.00014893,2]
[337189203,1725493880521,-500.0,0.00014893,2]
[337189204,1725493880532,-500.0,0.00014893,2]
[337189205,1725493880541,-500.0,0.00014893,2]
[337189206,1725493880550,-511.47,0.00014893,2]
[337189207,1725493880560,-739.97,0.00014893,2]
[337189208,1725493880571,-1649.26,0.00014893,2]
[337189209,1725493880583,-535.64,0.00014893,2]
[337189210,1725493880593,-1649.26,0.00014893,2]
[337189211,1725493880609,-841.42,0.00014893,2]
[337189212,1725493880618,-500.0,0.00014893,2]
[337189213,1725493880630,-500.0,0.00014893,2]
[337189214,1725493880640,-1706.7,0.00014893,2]
[337189215,1725493880650,-500.0,0.00014893,2]
[337189216,1725493880659,-500.0,0.00014893,2]
[337189217,1725493880669,-500.0,0.00014893,2]
[337189218,1725493880679,-500.0,0.00014893,2]
[337189219,1725493880688,-500.0,0.00014893,2]
[337189220,1725493880698,-500.0,0.00014893,2]
[337189221,1725493880708,-500.0,0.00014893,2]
[337189222,1725493880717,-500.0,0.00014893,2]
[337189223,1725493880726,-500.0,0.00014893,2]
[337189224,1725493880737,-500.0,0.00014893,2]
[337189225,1725493880747,-500.0,0.00014893,2]
[337189226,1725493880757,-501.08,0.00014893,2]
[337189227,1725493880767,-909.1,0.00014893,2]
[337189228,1725493880777,-2411.42,0.00014893,2]
[337189229,1725493880788,-2781.38,0.00014893,2]
[337189230,1725493880797,-2781.38,0.00014893,2]
[337189231,1725493880806,-1622.55,0.00014893,2]
[337189232,1725493880816,-1508.76,0.00014893,2]
[337189233,1725493880826,-500.0,0.00014893,2]
[337189234,1725493880835,-2357.76,0.00014893,2]
[337189235,1725493880845,-2357.76,0.00014893,2]
[337189236,1725493880855,-508.6,0.00014893,2]
[337189237,1725493880864,-2809.11,0.00014893,2]
[337189238,1725493880874,-500.0,0.00014893,2]
[337189239,1725493880884,-500.0,0.00014893,2]
[337189240,1725493880894,-500.0,0.00014893,2]
[337189241,1725493880904,-3647.95,0.00014893,2]
[337189242,1725493880914,-861.8,0.00014893,2]
[337189243,1725493880925,-1285.82,0.00014893,2]
[337189244,1725493880935,-1285.82,0.00014893,2]
[337189245,1725493880945,-584.69689103,0.00014893,2]
[337189246,1725493880955,-1848.03,0.00014893,2]
[337189247,1725493880965,-919.05,0.00014893,2]
[337189248,1725493880975,-500.0,0.00014893,2]
[337189249,1725493880985,-500.0,0.00014893,2]
[337189250,1725493880995,-500.0,0.00014893,2]
[337189251,1725493881005,-542.68,0.00014893,2]
[337189252,1725493881015,-1499.38,0.00014893,2]
[337189253,1725493881024,-1499.38,0.00014893,2]
[337189254,1725493881037,-2624.2,0.00014893,2]
[337189255,1725493881050,-507.04,0.00014893,2]
[337189256,1725493881060,-858.44,0.00014893,2]
[337189257,1725493881070,-500.0,0.00014893,2]
[337189258,1725493881081,-1482.02,0.00014893,2]
[337189259,1725493881090,-500.0,0.00014893,2]
[337189260,1725493881100,-601.16,0.00014893,2]
[337189261,1725493881110,-500.0,0.00014893,2]
[337189262,1725493881121,-739.0,0.00014893,2]
[337189263,1725493881131,-1750.52,0.00014893,2]
[337189264,1725493881141,-681.03,0.00014893,2]
[337189265,1725493881151,-979.84,0.00014893,2]
[337189266,1725493881161,-2562.42,0.00014893,2]
[337189267,1725493881171,-688.61,0.00014893,2]
[337189268,1725493881180,-500.0,0.00014893,2]
[337189269,1725493881190,-500.0,0.00014893,2]
[337189270,1725493881200,-990.0,0.00014893,2]
[337189271,1725493881210,-1678.27,0.00014893,2]
[337189272,1725493881220,-500.0,0.00014893,2]
[337189273,1725493881230,-3672.09,0.00014893,2]
[337189274,1725493881241,-3672.09,0.00014893,2]
[337189275,1725493881251,-434.2906536,0.00014893,2]
[337189276,1725493881261,-1656.44,0.00014893,2]
[337189277,1725493881271,-500.0,0.00014893,2]
[337189278,1725493881281,-500.0,0.00014893,2]
[337189279,1725493881291,-500.0,0.00014893,2]
[337189280,1725493881301,-156.38829321,0.00014893,2]
[337189281,1725493881311,-515.18,0.00014893,2]
[337189282,1725493881322,-754.21,0.00014893,2]
[337189283,1725493881333,-2650.45,0.00014893,2]
[337189284,1725493881343,-2650.45,0.00014893,2]
[337189285,1725493881353,-792.28,0.00014893,2]
[337189286,1725493881363,-702.07,0.00014893,2]
[337189287,1725493881373,-771.18,0.00014893,2]
[337189288,1725493881383,-500.0,0.00014893,2]
[337189289,1725493881394,-500.0,0.00014893,2]
[337189290,1725493881404,-684.48,0.00014893,2]
[337189291,1725493881414,-570.83,0.00014893,2]
[337189292,1725493881423,-500.0,0.00014893,2]
[337189293,1725493881433,-994.84,0.00014893,2]
[337189294,1725493881443,-500.0,0.00014893,2]
[337189295,1725493881453,-500.0,0.00014893,2]
[337189296,1725493881464,-665.39,0.00014893,2]
[337189297,1725493881473,-532.76,0.00014893,2]
[337189298,1725493881483,-536.03663589,0.00014893,2]
[337189299,1725493881493,-500.0,0.00014893,2]
[337189300,1725493881503,-500.0,0.00014893,2]
[337189301,1725493881512,-520.99,0.00014893,2]
[337189302,1725493881522,-500.0,0.00014893,2]
[337189303,1725493881533,-755.69,0.00014893,2]
[337189304,1725493881543,-500.0,0.00014893,2]
[337189305,1725493881552,-500.0,0.00014893,2]
[337189306,1725493881562,-500.0,0.00014893,2]
[337189307,1725493881572,-500.0,0.00014893,2]
[337189308,1725493881582,-1408.24,0.00014893,2]
[337189309,1725493881592,-500.0,0.00014893,2]
[337189310,1725493881602,-1408.24,0.00014893,2]
[337189311,1725493881612,-1812.05,0.00014893,2]
[337189312,1725493881624,-500.0,0.00014893,2]
[337189313,1725493881635,-500.0,0.00014893,2]
[337189314,1725493881645,-1799.95,0.00014893,2]
[337189315,1725493881655,-500.0,0.00014893,2]
[337189316,1725493881665,-500.0,0.00014893,2]
[337189317,1725493881675,-500.0,0.00014893,2]
[337189318,1725493881684,-500.0,0.00014893,2]
[337189319,1725493881694,-500.0,0.00014893,2]
[337189320,1725493881704,-501.55,0.00014893,2]
[337189321,1725493881715,-500.0,0.00014893,2]
[337189322,1725493881725,-1063.38,0.00014893,2]
[337189323,1725493881736,-1063.38,0.00014893,2]
[337189324,1725493881746,-500.0,0.00014893,2]
[337189325,1725493881756,-500.0,0.00014893,2]
[337189326,1725493881766,-2298.54,0.00014893,2]
[337189327,1725493881775,-504.09006479,0.00014893,2]
[337189328,1725493881786,-864.15,0.00014893,2]
[337189329,1725493882102,-500.0,0.00014893,2]
[337189330,1725493882111,-864.15,0.00014893,2]
[337189331,1725493882121,-923.71,0.00014893,2]
[337189332,1725493882131,-500.0,0.00014893,2]
[337189333,1725493882140,-500.0,0.00014893,2]
[337189334,1725493882149,-500.0,0.00014893,2]
[337189335,1725493882158,-500.0,0.00014893,2]
[337189336,1725493882168,-151.0,0.00014893,2]
[337189337,1725493882177,-1842.89,0.00014893,2]
[337189338,1725493882187,-151.0,0.00014893,2]
[337189339,1725493882196,-500.0,0.00014893,2]
[337189340,1725493882205,-500.0,0.00014893,2]
[337189341,1725493882214,-500.0,0.00014893,2]
[337189342,1725493882223,-151.0,0.00014893,2]
[337189343,1725493882233,-151.0,0.00014893,2]
[337189344,1725493882242,-500.0,0.00014893,2]
[337189345,1725493882251,-857.19,0.00014893,2]
[337189346,1725493882261,-897.45,0.00014893,2]
[337189347,1725493882271,-857.19,0.00014893,2]
[337189348,1725493882280,-612.61,0.00014893,2]
[337189349,1725493882291,-500.0,0.00014893,2]
[337189350,1725493882301,-500.0,0.00014893,2]
[337189351,1725493882310,-549.27,0.00014893,2]
[337189352,1725493882319,-500.0,0.00014893,2]
[337189353,1725493882329,-500.0,0.00014893,2]
[337189354,1725493882338,-1237.79,0.00014893,2]
[337189355,1725493882348,-1237.79,0.00014893,2]
[337189356,1725493882357,-1966.46,0.00014893,2]
[337189357,1725493882367,-500.0,0.00014893,2]
[337189358,1725493882377,-1217.24,0.00014893,2]
[337189359,1725493882388,-620.27,0.00014893,2]
[337189360,1725493882398,-500.0,0.00014893,2]
[337189361,1725493882409,-500.0,0.00014893,2]
[337189362,1725493882421,-500.0,0.00014893,2]
[337189363,1725493882432,-759.78,0.00014893,2]
[337189364,1725493882444,-1033.26,0.00014893,2]
[337189365,1725493882454,-1033.26,0.00014893,2]
[337189366,1725493882464,-1689.57,0.00014893,2]
[337189367,1725493882474,-500.0,0.00014893,2]
[337189368,1725493882484,-633.09,0.00014893,2]
[337189369,1725493882494,-544.51,0.00014893,2]
[337189370,1725493882504,-880.57,0.00014893,2]
[337189371,1725493882514,-500.0,0.00014893,2]
[337189372,1725493882524,-2047.03,0.00014893,2]
[337189373,1725493882534,-2515.32,0.00014893,2]
[337189374,1725493882544,-2047.03,0.00014893,2]
[337189375,1725493882553,-500.0,0.00014893,2]
[337189376,1725493882562,-428.79911529,0.00014893,2]
[337189377,1725493882572,-500.0,0.00014893,2]
[337189378,1725493882581,-2265.65,0.00014893,2]
[337189379,1725493882591,-20290.12,0.00014893,2]
[337189380,1725493882600,-1998.4,0.00014893,2]
[337189381,1725493882609,-500.0,0.00014893,2]
[337189382,1725493882622,-500.0,0.00014893,2]
[337189383,1725493882631,-500.0,0.00014893,2]
[337189384,1725493882640,-1535.5,0.00014893,2]
[337189385,1725493882649,-666.22,0.00014893,2]
[337189386,1725493882659,-666.22,0.00014893,2]
[337189387,1725493882668,-834.65,0.00014893,2]
[337189388,1725493882677,-151.0,0.00014893,2]
[337189389,1725493882686,-1256.47,0.00014893,2]
[337189390,1725493882697,-151.0,0.00014893,2]
[337189391,1725493882707,-1659.66,0.00014893,2]
[337189392,1725493882716,-1777.58,0.00014893,2]
[337189393,1725493882726,-500.0,0.00014893,2]
[337189394,1725493882735,-500.0,0.00014893,2]
[337189395,1725493882745,-1526.53,0.00014893,2]
[337189396,1725493882754,-633.94,0.00014893,2]
[337189397,1725493882763,-500.0,0.00014893,2]
[337189398,1725493882772,-500.0,0.00014893,2]
[337189399,1725493882781,-506.22,0.00014893,2]
[337189400,1725493882792,-650.82,0.00014893,2]
[337189401,1725493882801,-650.82,0.00014893,2]
[337189402,1725493882811,-727.09,0.00014893,2]
[337189403,1725493882820,-2265.63,0.00014893,2]
[337189404,1725493882829,-252.361117,0.00014893,2]
[337189405,1725493882839,-500.0,0.00014893,2]
[337189406,1725493882848,-252.361117,0.00014893,2]
[337189407,1725493882857,-2697.94,0.00014893,2]
[337189408,1725493882867,-2697.94,0.00014893,2]
[337189409,1725493882876,-252.361117,0.00014893,2]
[337189410,1725493882885,-602.09,0.00014893,2]
[337189411,1725493882895,-252.361117,0.00014893,2]
[337189412,1725493882904,-500.0,0.00014893,2]
[337189413,1725493882913,-500.0,0.00014893,2]
[337189414,1725493882922,-500.0,0.00014893,2]
[337189415,1725493882931,-682.62,0.00014893,2]
[337189416,1725493882941,-500.0,0.00014893,2]
[337189417,1725493882950,-500.0,0.00014893,2]
[337189418,1725493882959,-500.0,0.00014893,2]
[337189419,1725493882969,-500.0,0.00014893,2]
[337189420,1725493882978,-500.0,0.00014893,2]
[337189421,1725493882987,-500.0,0.00014893,2]
[337189422,1725493882997,-500.0,0.00014893,2]
[337189423,1725493883007,-1681.13,0.00014893,2]
[337189424,1725493883017,-2369.51,0.00014893,2]
[337189425,1725493883026,-807.71,0.00014893,2]
[337189426,1725493883036,-807.71,0.00014893,2]
[337189427,1725493883046,-504.26856331,0.00014893,2]
[337189428,1725493883056,-659.68,0.00014893,2]
[337189429,1725493883066,-686.45,0.00014893,2]
[337189430,1725493883075,-500.0,0.00014893,2]
[337189431,1725493883085,-500.0,0.00014893,2]
[337189432,1725493883095,-1458.37,0.00014893,2]
[337189433,1725493883107,-1458.37,0.00014893,2]
[337189434,1725493883116,-500.0,0.00014893,2]
[337189435,1725493883126,-2637.27,0.00014893,2]
[337189436,1725493883136,-151.0,0.00014893,2]
[337189437,1725493883147,-151.0,0.00014893,2]
[337189438,1725493883157,-500.0,0.00014893,2]
[337189439,1725493883167,-500.0,0.00014893,2]
[337189440,1725493883178,-234.068259,0.00014893,2]
[337189441,1725493883187,-500.0,0.00014893,2]
[337189442,1725493883197,-540.29,0.00014893,2]
[337189443,1725493883206,-642.38,0.00014893,2]
[337189444,1725493883215,-642.38,0.00014893,2]
[337189445,1725493883225,-2408.55,0.00014893,2]
[337189446,1725493883236,-500.0,0.00014893,2]
[337189447,1725493883245,-500.0,0.00014893,2]
[337189448,1725493883255,-500.0,0.00014893,2]
[337189449,1725493883264,-500.0,0.00014893,2]
[337189450,1725493883274,-689.45,0.00014893,2]
[337189451,1725493883283,-689.45,0.00014893,2]
[337189452,1725493883293,-2338.27,0.00014893,2]
[337189453,1725493883303,-500.0,0.00014893,2]
[337189454,1725493883313,-500.0,0.00014893,2]
[337189455,1725493883323,-500.0,0.00014893,2]
[337189456,1725493883333,-1226.41,0.00014893,2]
[337189457,1725493883343,-500.0,0.00014893,2]
[337189458,1725493883352,-500.0,0.00014893,2]
[337189459,1725493883362,-500.0,0.00014893,2]
[337189460,1725493883372,-500.0,0.00014893,2]
[337189461,1725493883381,-500.0,0.00014893,2]
[337189462,1725493883391,-457.50388994,0.00014893,2]
[337189463,1725493883400,-500.0,0.00014893,2]
[337189464,1725493883410,-716.42,0.00014893,2]
[337189465,1725493883419,-1583.31,0.00014893,2]
[337189466,1725493883428,-716.42,0.00014893,2]
[337189467,1725493883438,-500.0,0.00014893,2]
[337189468,1725493883447,-515.05,0.00014893,2]
[337189469,1725493883456,-524.79,0.00014893,2]
[337189470,1725493883466,-500.0,0.00014893,2]
[337189471,1725493883475,-1034.71,0.00014893,2]
[337189472,1725493883485,-532.27,0.00014893,2]
[337189473,1725493883494,-500.0,0.00014893,2]
[337189474,1725493883503,-500.0,0.00014893,2]
[337189475,1725493883512,-677.9,0.00014893,2]
[337189476,1725493883522,-11296.32,0.00014893,2]
[337189477,1725493883531,-501.76630017,0.00014893,2]
[337189478,1725493883541,-500.0,0.00014893,2]
[337189479,1725493883550,-639.64,0.00014893,2]
[337189480,1725493883560,-500.0,0.00014893,2]
[337189481,1725493883569,-150.0,0.00014893,2]
[337189482,1725493883579,-1139.67,0.00014893,2]
[337189483,1725493883588,-500.0,0.00014893,2]
[337189484,1725493883597,-500.0,0.00014893,2]
[337189485,1725493883606,-500.0,0.00014893,2]
[337189486,1725493883618,-1314.4,0.00014893,2]
[337189487,1725493883627,-2582.17,0.00014893,2]
[337189488,1725493883636,-2582.17,0.00014893,2]
[337189489,1725493883646,-500.0,0.00014893,2]
[337189490,1725493883655,-500.0,0.00014893,2]
[337189491,1725493883664,-5000.0,0.00014894,2]
[337189492,1725493883673,-2064.47,0.00014894,2]
[337189493,1725493883682,-1157.33,0.00014894,2]
[337189494,1725493883691,-500.0,0.00014894,2]
[337189495,1725493883700,-2375.0,0.00014894,2]
[337189496,1725493883710,-1802.48,0.00014894,2]
[337189497,1725493883719,-823.87,0.00014894,2]
[337189498,1725493883728,-500.0,0.00014894,2]
[337189499,1725493883740,-1098.42,0.00014894,2]
[337189500,1725493883749,-500.0,0.00014894,2]
[337189501,1725493883759,-500.0,0.00014894,2]
[337189502,1725493883768,-500.0,0.00014894,2]
[337189503,1725493883778,-884.1,0.00014894,2]
[337189504,1725493883787,-1014.91,0.00014894,2]
[337189505,1725493883796,-613.9,0.00014894,2]
[337189506,1725493883805,-151.0,0.00014899,2]
[337189507,1725493883815,-4437.01088784,0.000149,2]
[337189508,1725493883824,-150.0,0.00014973,2]
[337189509,1725493883834,-500.0,0.00014985,2]
[337189510,1725493883844,-508.98,0.00014985,2]
[337189511,1725493883854,-500.0,0.00014985,2]
[337189512,1725493883863,-1053.32,0.00014985,2]
[337189513,1725493883872,-748.31,0.00014985,2]
[337189514,1725493883882,-500.0,0.00014985,2]
[337189515,1725493883891,-532.05,0.00014985,2]
[337189516,1725493883900,-583.13,0.00014985,2]
[337189517,1725493883910,-679.89,0.00014985,2]
[337189518,1725493883919,-500.0,0.00014985,2]
[337189519,1725493883928,-500.0,0.00014985,2]